[Event "*** Titled Tuesday Blitz"]
[Site "Chess.com"]
[Date "2018.04.03"]
[Round "10"]
[White "Albertu"]
[Black "DiogenesSinopeus"]
[Result "1-0"]
[WhiteElo "2234"]
[BlackElo "2414"]
[TimeControl "180+2"]
[EndTime "15:13:37 PDT"]
[Termination "Albertu won by resignation"]

1. e4 {[%clk 0:02:57.8]} 1... e5 {[%clk 0:03:01.2]} 2. Nf3 {[%clk 0:02:58.1]}
2... Nc6 {[%clk 0:03:02.4]} 3. Bb5 {[%clk 0:02:59.1]} 3... a6 {[%clk 0:03:03.8]}
4. Ba4 {[%clk 0:03:00]} 4... d6 {[%clk 0:03:05.7]} 5. c3 {[%clk 0:02:52.5]} 5...
f5 {[%clk 0:03:06.6]} 6. d3 {[%clk 0:02:44.7]} 6... Nf6 {[%clk 0:03:07.2]} 7.
Bg5 {[%clk 0:02:27.5]} 7... Be7 {[%clk 0:03:06.4]} 8. O-O {[%clk 0:02:19.8]}
8... fxe4 {[%clk 0:03:04.8]} 9. dxe4 {[%clk 0:02:19.1]} 9... O-O {[%clk
0:02:42.6]} 10. Bxf6 {[%clk 0:01:40.7]} 10... Bxf6 {[%clk 0:02:37]} 11. Qd5+
{[%clk 0:01:41]} 11... Kh8 {[%clk 0:02:37.5]} 12. Bxc6 {[%clk 0:01:41.8]} 12...
bxc6 {[%clk 0:02:38.5]} 13. Qxc6 {[%clk 0:01:42.9]} 13... Bg4 {[%clk 0:02:39.4]}
14. Nbd2 {[%clk 0:01:26.9]} 14... a5 {[%clk 0:02:20.1]} 15. h3 {[%clk
0:01:21.8]} 15... Bh5 {[%clk 0:02:17.5]} 16. Nh2 {[%clk 0:00:28.8]} 16... Rb8
{[%clk 0:02:11.3]} 17. b3 {[%clk 0:00:26]} 17... Be8 {[%clk 0:02:11.5]} 18. Qd5
{[%clk 0:00:24.5]} 18... Bg5 {[%clk 0:02:05.6]} 19. c4 {[%clk 0:00:21.5]} 19...
Qf6 {[%clk 0:02:00.8]} 20. Qxa5 {[%clk 0:00:19.8]} 20... Bh5 {[%clk 0:01:56.2]}
21. Ndf3 {[%clk 0:00:18.3]} 21... Rf7 {[%clk 0:01:41.2]} 22. Nxg5 {[%clk
0:00:17.4]} 22... Qxg5 {[%clk 0:01:43.1]} 23. Qc3 {[%clk 0:00:17.8]} 23... Bg6
{[%clk 0:01:35.5]} 24. Qg3 {[%clk 0:00:17.7]} 24... Qd2 {[%clk 0:01:32]} 25. Qe3
{[%clk 0:00:14.8]} 25... Qc2 {[%clk 0:01:29]} 26. f3 {[%clk 0:00:14.1]} 26...
Rff8 {[%clk 0:01:16.5]} 27. Rf2 {[%clk 0:00:14.4]} 1-0

[Event "*** Titled Tuesday Blitz"]
[Site "Chess.com"]
[Date "2018.04.03"]
[Round "10"]
[White "Orest_Vovk"]
[Black "Margency"]
[Result "0-1"]
[WhiteElo "2365"]
[BlackElo "2583"]
[TimeControl "180+2"]
[EndTime "15:13:39 PDT"]
[Termination "Margency won by resignation"]

1. g4 {[%clk 0:03:01.9]} 1... d5 {[%clk 0:02:59.9]} 2. h3 {[%clk 0:03:02.7]}
2... e5 {[%clk 0:02:52.3]} 3. Bg2 {[%clk 0:03:03.9]} 3... c6 {[%clk 0:02:52.8]}
4. d4 {[%clk 0:03:04.6]} 4... e4 {[%clk 0:02:52.3]} 5. c4 {[%clk 0:03:05.5]}
5... Bd6 {[%clk 0:02:50.3]} 6. Nc3 {[%clk 0:03:06.9]} 6... Ne7 {[%clk
0:02:49.9]} 7. Qb3 {[%clk 0:03:07.9]} 7... O-O {[%clk 0:02:46.2]} 8. Bg5 {[%clk
0:03:06.7]} 8... f6 {[%clk 0:02:34.1]} 9. Bd2 {[%clk 0:03:07.3]} 9... Kh8 {[%clk
0:02:27.9]} 10. cxd5 {[%clk 0:02:57]} 10... cxd5 {[%clk 0:02:20.5]} 11. Nxd5
{[%clk 0:02:57.6]} 11... Be6 {[%clk 0:02:16.7]} 12. Bxe4 {[%clk 0:02:57.4]}
12... Nbc6 {[%clk 0:02:17.4]} 13. e3 {[%clk 0:02:40.1]} 13... Bc7 {[%clk
0:01:57.6]} 14. Qxb7 {[%clk 0:01:59.7]} 14... Bxd5 {[%clk 0:01:58.2]} 15. Bxd5
{[%clk 0:01:57.5]} 15... Qxd5 {[%clk 0:01:58.9]} 16. f3 {[%clk 0:01:41.2]} 16...
Bg3+ {[%clk 0:01:53.1]} 17. Kf1 {[%clk 0:01:37.2]} 17... Qc4+ {[%clk 0:01:45.3]}
18. Kg2 {[%clk 0:01:36.7]} 18... Rab8 {[%clk 0:01:46.4]} 19. Qd7 {[%clk
0:01:37.3]} 19... Rfd8 {[%clk 0:01:44.9]} 20. Rc1 {[%clk 0:01:29.4]} 20... Qxa2
{[%clk 0:01:36.4]} 21. Qxd8+ {[%clk 0:01:19.6]} 21... Rxd8 {[%clk 0:01:36.3]}
22. Kxg3 {[%clk 0:01:20.8]} 22... Qxb2 {[%clk 0:01:35.4]} 23. Rh2 {[%clk
0:01:22]} 23... h5 {[%clk 0:01:32.1]} 24. Rc5 {[%clk 0:01:19]} 24... Rd5 {[%clk
0:01:24.4]} 25. Rc4 {[%clk 0:01:13.8]} 25... g5 {[%clk 0:01:22.2]} 26. Re2
{[%clk 0:01:05.2]} 26... h4+ {[%clk 0:01:20.4]} 27. Kg2 {[%clk 0:01:06.2]} 27...
Qb3 {[%clk 0:01:20.4]} 28. Rc3 {[%clk 0:01:03.2]} 28... Qb8 {[%clk 0:01:19.3]}
29. Be1 {[%clk 0:00:58.3]} 29... Rb5 {[%clk 0:01:19.3]} 30. Rcc2 {[%clk
0:00:53.4]} 30... Rb1 {[%clk 0:01:19.7]} 31. Bf2 {[%clk 0:00:50.8]} 31... Qb5
{[%clk 0:01:20.6]} 32. e4 {[%clk 0:00:47.9]} 32... Nb4 {[%clk 0:01:19.9]} 33.
Rc7 {[%clk 0:00:45.8]} 33... Rxg1+ {[%clk 0:01:18.9]} 34. Kxg1 {[%clk
0:00:44.4]} 34... Qxe2 {[%clk 0:01:19.6]} 35. Rxe7 {[%clk 0:00:45.6]} 35... Nd3
{[%clk 0:01:20.8]} 0-1

[Event "*** Titled Tuesday Blitz"]
[Site "Chess.com"]
[Date "2018.04.03"]
[Round "10"]
[White "schoolmeester"]
[Black "wonderfultime"]
[Result "0-1"]
[WhiteElo "2707"]
[BlackElo "2768"]
[TimeControl "180+2"]
[EndTime "15:13:43 PDT"]
[Termination "wonderfultime won by resignation"]

1. e4 {[%clk 0:02:44.1]} 1... c5 {[%clk 0:03:00.4]} 2. Nf3 {[%clk 0:02:42.9]}
2... d6 {[%clk 0:03:01.8]} 3. d4 {[%clk 0:02:43.6]} 3... cxd4 {[%clk 0:03:03.7]}
4. Nxd4 {[%clk 0:02:44.7]} 4... Nf6 {[%clk 0:03:05.1]} 5. Nc3 {[%clk 0:02:45.3]}
5... g6 {[%clk 0:03:06.6]} 6. Be3 {[%clk 0:02:42.2]} 6... Bg7 {[%clk 0:03:08]}
7. f3 {[%clk 0:02:43.5]} 7... Nc6 {[%clk 0:03:09]} 8. Qd2 {[%clk 0:02:44]} 8...
O-O {[%clk 0:03:10.3]} 9. g4 {[%clk 0:02:42]} 9... Be6 {[%clk 0:03:10.7]} 10. h4
{[%clk 0:02:30.4]} 10... d5 {[%clk 0:03:06]} 11. O-O-O {[%clk 0:02:24.4]} 11...
dxe4 {[%clk 0:03:04.5]} 12. h5 {[%clk 0:02:21.5]} 12... Nxd4 {[%clk 0:02:23.8]}
13. Bxd4 {[%clk 0:02:20.7]} 13... exf3 {[%clk 0:02:24.2]} 14. hxg6 {[%clk
0:02:16]} 14... fxg6 {[%clk 0:02:26.1]} 15. Qe1 {[%clk 0:01:31.2]} 15... Qc8
{[%clk 0:02:17.6]} 16. g5 {[%clk 0:01:27.5]} 16... Nh5 {[%clk 0:02:10.6]} 17.
Bxg7 {[%clk 0:01:27.3]} 17... Nxg7 {[%clk 0:02:09.9]} 18. Bd3 {[%clk 0:01:06.4]}
18... Qc5 {[%clk 0:01:57.6]} 19. Ne4 {[%clk 0:01:01.4]} 19... Qe5 {[%clk
0:01:58.7]} 20. Kb1 {[%clk 0:00:52]} 20... Rf4 {[%clk 0:01:57.8]} 21. Rh6 {[%clk
0:00:16.7]} 21... Raf8 {[%clk 0:01:54.7]} 22. Qh1 {[%clk 0:00:17.2]} 22... Rxe4
{[%clk 0:01:52.9]} 23. Bxe4 {[%clk 0:00:18.1]} 23... Qxe4 {[%clk 0:01:54.8]} 24.
Rxh7 {[%clk 0:00:19.7]} 24... Nh5 {[%clk 0:01:39]} 25. Re1 {[%clk 0:00:20.4]}
25... Qd5 {[%clk 0:01:34.4]} 26. Rxe7 {[%clk 0:00:19.1]} 26... Qxa2+ {[%clk
0:01:35.3]} 27. Kc1 {[%clk 0:00:19.1]} 27... Rd8 {[%clk 0:01:32.3]} 28. c3
{[%clk 0:00:19.7]} 28... Bf5 {[%clk 0:01:13.2]} 29. Re8+ {[%clk 0:00:18.7]}
29... Rxe8 {[%clk 0:01:14.4]} 30. Rxe8+ {[%clk 0:00:20.2]} 30... Kf7 {[%clk
0:01:15.6]} 0-1

[Event "*** Titled Tuesday Blitz"]
[Site "Chess.com"]
[Date "2018.04.03"]
[Round "10"]
[White "EmeseBalogh"]
[Black "Eliwood44"]
[Result "1-0"]
[WhiteElo "1970"]
[BlackElo "2176"]
[TimeControl "180+2"]
[EndTime "15:13:45 PDT"]
[Termination "EmeseBalogh won by checkmate"]

1. e4 {[%clk 0:03:01.9]} 1... e5 {[%clk 0:02:53.9]} 2. Nf3 {[%clk 0:02:49.5]}
2... Nc6 {[%clk 0:02:54.7]} 3. d4 {[%clk 0:02:50.5]} 3... exd4 {[%clk
0:02:55.5]} 4. Bc4 {[%clk 0:02:51.8]} 4... Nf6 {[%clk 0:02:56.3]} 5. e5 {[%clk
0:02:52.4]} 5... d5 {[%clk 0:02:57.4]} 6. Bb5 {[%clk 0:02:51.4]} 6... Ne4 {[%clk
0:02:56.3]} 7. Nxd4 {[%clk 0:02:51]} 7... Bd7 {[%clk 0:02:56.8]} 8. Bxc6 {[%clk
0:02:50.7]} 8... bxc6 {[%clk 0:02:57.4]} 9. O-O {[%clk 0:02:51.4]} 9... Bc5
{[%clk 0:02:58]} 10. Be3 {[%clk 0:02:52.1]} 10... Bb6 {[%clk 0:02:58.5]} 11. c3
{[%clk 0:02:53.7]} 11... c5 {[%clk 0:02:51.2]} 12. Nb3 {[%clk 0:02:54.2]} 12...
c4 {[%clk 0:02:49.4]} 13. Nd4 {[%clk 0:02:55.1]} 13... c5 {[%clk 0:02:48.6]} 14.
Ne2 {[%clk 0:02:55.2]} 14... Bc6 {[%clk 0:02:49.7]} 15. f3 {[%clk 0:02:55.9]}
15... Ng5 {[%clk 0:02:43.2]} 16. f4 {[%clk 0:02:56.8]} 16... Ne4 {[%clk
0:02:43.3]} 17. Nd2 {[%clk 0:02:57.2]} 17... d4 {[%clk 0:02:41.6]} 18. cxd4
{[%clk 0:02:45.8]} 18... cxd4 {[%clk 0:02:41]} 19. Nxe4 {[%clk 0:02:38.6]} 19...
Qd5 {[%clk 0:02:36.7]} 20. N2g3 {[%clk 0:01:49.5]} 20... dxe3 {[%clk 0:02:36]}
21. Qxd5 {[%clk 0:01:45.2]} 21... e2+ {[%clk 0:02:25.7]} 22. Rf2 {[%clk
0:01:45.8]} 22... Bxd5 {[%clk 0:02:23.6]} 23. Nd6+ {[%clk 0:01:42.2]} 23... Kd7
{[%clk 0:02:18.7]} 24. Nxe2 {[%clk 0:01:43]} 24... Rab8 {[%clk 0:02:14.6]} 25.
Rd1 {[%clk 0:01:42.8]} 25... Bxf2+ {[%clk 0:02:06.5]} 26. Kxf2 {[%clk
0:01:44.7]} 26... Kc6 {[%clk 0:02:04.4]} 27. Nc3 {[%clk 0:01:37.2]} 27... Rxb2+
{[%clk 0:02:03.7]} 28. Ke3 {[%clk 0:01:36.5]} 28... Bxg2 {[%clk 0:02:02.4]} 29.
Nxc4 {[%clk 0:01:36.6]} 29... Rbb8 {[%clk 0:01:58.8]} 30. Rd6+ {[%clk
0:01:35.8]} 30... Kc7 {[%clk 0:01:56.9]} 31. Nd5+ {[%clk 0:01:14]} 31... Bxd5
{[%clk 0:01:56.9]} 32. Rxd5 {[%clk 0:01:15.9]} 32... Rhg8 {[%clk 0:01:52.5]} 33.
Nd6 {[%clk 0:01:16.8]} 33... Rgf8 {[%clk 0:01:50.7]} 34. Kd4 {[%clk 0:01:04.6]}
34... Rb2 {[%clk 0:01:50.1]} 35. Nc4 {[%clk 0:01:04.3]} 35... Rxa2 {[%clk
0:01:45.8]} 36. Rc5+ {[%clk 0:01:05.5]} 36... Kb7 {[%clk 0:01:44.5]} 37. Kd5
{[%clk 0:01:03.8]} 37... Rxh2 {[%clk 0:01:40.3]} 38. Nd6+ {[%clk 0:01:04.5]}
38... Kb6 {[%clk 0:01:38.1]} 39. Rc6+ {[%clk 0:01:05.4]} 39... Ka5 {[%clk
0:01:37]} 40. Kc5 {[%clk 0:01:01.8]} 40... Rc2+ {[%clk 0:01:32.4]} 41. Nc4+
{[%clk 0:01:02.5]} 41... Ka4 {[%clk 0:01:28.8]} 42. Ra6+ {[%clk 0:00:58.7]}
42... Kb3 {[%clk 0:01:29]} 43. Ra3# {[%clk 0:00:59.6]} 1-0

[Event "*** Titled Tuesday Blitz"]
[Site "Chess.com"]
[Date "2018.04.03"]
[Round "10"]
[White "lachesisQ"]
[Black "Korchmar_Vasiliy"]
[Result "1-0"]
[WhiteElo "2899"]
[BlackElo "2675"]
[TimeControl "180+2"]
[EndTime "15:14:10 PDT"]
[Termination "lachesisQ won by resignation"]

1. e4 {[%clk 0:03:01.9]} 1... e5 {[%clk 0:03:00.8]} 2. Nf3 {[%clk 0:03:01]} 2...
Nc6 {[%clk 0:03:02]} 3. Bb5 {[%clk 0:03:02.6]} 3... a6 {[%clk 0:03:02.8]} 4. Ba4
{[%clk 0:03:04]} 4... Nf6 {[%clk 0:03:04.2]} 5. O-O {[%clk 0:03:05.6]} 5... Be7
{[%clk 0:03:05.7]} 6. d3 {[%clk 0:03:06.7]} 6... b5 {[%clk 0:03:07]} 7. Bb3
{[%clk 0:03:08.2]} 7... O-O {[%clk 0:03:08.1]} 8. a3 {[%clk 0:03:09.7]} 8... d6
{[%clk 0:03:05]} 9. Nc3 {[%clk 0:03:10.4]} 9... Na5 {[%clk 0:03:06.2]} 10. Ba2
{[%clk 0:03:11.3]} 10... Be6 {[%clk 0:03:07.7]} 11. b4 {[%clk 0:03:11]} 11...
Bxa2 {[%clk 0:03:02.1]} 12. Nxa2 {[%clk 0:03:12.9]} 12... Nc6 {[%clk 0:03:03.1]}
13. c4 {[%clk 0:03:13.1]} 13... Nb8 {[%clk 0:02:35]} 14. Nc3 {[%clk 0:03:13.4]}
14... c6 {[%clk 0:02:35.4]} 15. h3 {[%clk 0:03:11.3]} 15... Nbd7 {[%clk
0:02:36]} 16. Be3 {[%clk 0:03:12.7]} 16... Re8 {[%clk 0:02:32.9]} 17. a4 {[%clk
0:03:09.1]} 17... a5 {[%clk 0:01:50.9]} 18. axb5 {[%clk 0:03:08.9]} 18... axb4
{[%clk 0:01:51.7]} 19. bxc6 {[%clk 0:03:10.4]} 19... bxc3 {[%clk 0:01:39.9]} 20.
cxd7 {[%clk 0:03:10.6]} 20... Nxd7 {[%clk 0:01:29.1]} 21. Qc2 {[%clk 0:03:11.2]}
21... Nf8 {[%clk 0:01:22.4]} 22. Qxc3 {[%clk 0:03:12.2]} 22... Ne6 {[%clk
0:01:23.6]} 23. Rxa8 {[%clk 0:03:10.6]} 23... Qxa8 {[%clk 0:01:24.2]} 24. Ra1
{[%clk 0:03:12.5]} 24... Qb7 {[%clk 0:01:24]} 25. Nd2 {[%clk 0:03:08.2]} 25...
Ra8 {[%clk 0:01:21.3]} 26. Rb1 {[%clk 0:03:05.3]} 26... Qc8 {[%clk 0:01:19.5]}
27. Qb3 {[%clk 0:03:02.2]} 27... Bg5 {[%clk 0:01:00.6]} 28. Bxg5 {[%clk
0:03:02.5]} 28... Nxg5 {[%clk 0:01:01.4]} 29. Qb7 {[%clk 0:03:04.1]} 29... Qf8
{[%clk 0:00:59.3]} 30. c5 {[%clk 0:02:42.2]} 30... dxc5 {[%clk 0:00:49.8]} 31.
Nc4 {[%clk 0:02:43.2]} 31... f6 {[%clk 0:00:33.7]} 32. Qd5+ {[%clk 0:02:11.2]}
32... Kh8 {[%clk 0:00:33.8]} 33. h4 {[%clk 0:01:59.9]} 33... Rd8 {[%clk
0:00:30.1]} 34. hxg5 {[%clk 0:02:01]} 34... Rxd5 {[%clk 0:00:28.3]} 35. exd5
{[%clk 0:02:02.9]} 35... fxg5 {[%clk 0:00:14.8]} 36. d6 {[%clk 0:02:04.1]} 36...
h5 {[%clk 0:00:06.1]} 37. d7 {[%clk 0:02:04.6]} 37... Qd8 {[%clk 0:00:05.2]} 38.
Nxe5 {[%clk 0:02:05.3]} 38... Kh7 {[%clk 0:00:05.7]} 39. Rb7 {[%clk 0:01:50.4]}
39... Kg8 {[%clk 0:00:04.8]} 40. Nc6 {[%clk 0:01:49.9]} 1-0

[Event "*** Titled Tuesday Blitz"]
[Site "Chess.com"]
[Date "2018.04.03"]
[Round "10"]
[White "eldur16"]
[Black "OparinGrigoriy"]
[Result "0-1"]
[WhiteElo "2578"]
[BlackElo "2824"]
[TimeControl "180+2"]
[EndTime "15:14:18 PDT"]
[Termination "OparinGrigoriy won by resignation"]

1. e4 {[%clk 0:03:00.7]} 1... c5 {[%clk 0:02:59.8]} 2. Ne2 {[%clk 0:03:00.6]}
2... d6 {[%clk 0:03:00.2]} 3. g3 {[%clk 0:03:01.1]} 3... d5 {[%clk 0:03:01.8]}
4. d3 {[%clk 0:02:52.1]} 4... dxe4 {[%clk 0:02:57]} 5. dxe4 {[%clk 0:02:52.7]}
5... Qxd1+ {[%clk 0:02:58.4]} 6. Kxd1 {[%clk 0:02:53.5]} 6... Nc6 {[%clk
0:03:00.3]} 7. Bg2 {[%clk 0:02:52.7]} 7... Bg4 {[%clk 0:03:01.3]} 8. f3 {[%clk
0:02:52.8]} 8... O-O-O+ {[%clk 0:03:01.4]} 9. Ke1 {[%clk 0:02:52.1]} 9... Bd7
{[%clk 0:03:03.3]} 10. Be3 {[%clk 0:02:49.4]} 10... e5 {[%clk 0:03:02.5]} 11. c3
{[%clk 0:02:48.5]} 11... Be6 {[%clk 0:03:00.7]} 12. Na3 {[%clk 0:02:38.3]} 12...
a6 {[%clk 0:02:59.6]} 13. Kf2 {[%clk 0:02:38.1]} 13... Kc7 {[%clk 0:03:00.5]}
14. Nc2 {[%clk 0:02:32.9]} 14... Bd6 {[%clk 0:02:59]} 15. Rhd1 {[%clk
0:02:30.4]} 15... Nge7 {[%clk 0:02:59.7]} 16. b3 {[%clk 0:02:17.1]} 16... f6
{[%clk 0:02:59.9]} 17. Rab1 {[%clk 0:02:12.1]} 17... b5 {[%clk 0:02:58.5]} 18.
a3 {[%clk 0:02:07.6]} 18... Nc8 {[%clk 0:02:58.6]} 19. b4 {[%clk 0:02:05.2]}
19... c4 {[%clk 0:02:55.1]} 20. Rd2 {[%clk 0:01:56]} 20... Nb6 {[%clk 0:02:56]}
21. Rbd1 {[%clk 0:01:55.2]} 21... Na4 {[%clk 0:02:57.1]} 22. f4 {[%clk
0:01:53.7]} 22... Bg4 {[%clk 0:02:55.5]} 23. Bf3 {[%clk 0:01:52.5]} 23... Be6
{[%clk 0:02:51.3]} 24. f5 {[%clk 0:01:47.4]} 24... Bf7 {[%clk 0:02:50.9]} 25. g4
{[%clk 0:01:48]} 25... h6 {[%clk 0:02:48.7]} 26. Ne1 {[%clk 0:01:39.5]} 26...
Be7 {[%clk 0:02:46.7]} 27. h4 {[%clk 0:01:31.1]} 27... Rxd2 {[%clk 0:02:46.6]}
28. Rxd2 {[%clk 0:01:31.2]} 28... a5 {[%clk 0:02:45.3]} 29. Ng2 {[%clk
0:01:12.9]} 29... Ra8 {[%clk 0:02:41]} 30. Kg3 {[%clk 0:00:58]} 30... axb4
{[%clk 0:02:35.3]} 31. axb4 {[%clk 0:00:58]} 31... Nb6 {[%clk 0:02:36.8]} 32.
Bf2 {[%clk 0:00:56.7]} 32... Ra3 {[%clk 0:02:34.5]} 33. Ne3 {[%clk 0:00:55.8]}
33... Na4 {[%clk 0:02:34.5]} 34. Rc2 {[%clk 0:00:55.8]} 34... Bd6 {[%clk
0:02:31.4]} 35. g5 {[%clk 0:00:50]} 35... hxg5 {[%clk 0:02:31.9]} 36. hxg5
{[%clk 0:00:50.6]} 36... Nd4 {[%clk 0:02:33.4]} 37. cxd4 {[%clk 0:00:33.1]}
37... exd4+ {[%clk 0:02:34.4]} 38. Kg4 {[%clk 0:00:30.3]} 38... dxe3 {[%clk
0:02:34.7]} 39. Bg3 {[%clk 0:00:31.1]} 39... Rd3 {[%clk 0:02:10.6]} 40. Bf4
{[%clk 0:00:21]} 40... c3 {[%clk 0:02:05.1]} 41. gxf6 {[%clk 0:00:17.7]} 41...
gxf6 {[%clk 0:02:05.9]} 42. Bxd6+ {[%clk 0:00:18]} 42... Kxd6 {[%clk 0:02:06.8]}
43. Kf4 {[%clk 0:00:18.3]} 43... Bb3 {[%clk 0:02:06.4]} 44. Rc1 {[%clk
0:00:18.5]} 44... c2 {[%clk 0:02:07.7]} 45. Ng3 {[%clk 0:00:16.6]} 45... Nc3
{[%clk 0:02:07.7]} 46. e5+ {[%clk 0:00:15.9]} 46... fxe5+ {[%clk 0:02:08.5]} 47.
Kg5 {[%clk 0:00:16.4]} 47... e2 {[%clk 0:02:10]} 48. f6 {[%clk 0:00:15]} 48...
Rxf3 {[%clk 0:02:10.8]} 0-1

[Event "*** Titled Tuesday Blitz"]
[Site "Chess.com"]
[Date "2018.04.03"]
[Round "10"]
[White "GMAkobianSTL"]
[Black "maximlavrov"]
[Result "0-1"]
[WhiteElo "2659"]
[BlackElo "2452"]
[TimeControl "180+2"]
[EndTime "15:14:29 PDT"]
[Termination "maximlavrov won on time"]

1. d4 {[%clk 0:03:01.2]} 1... g6 {[%clk 0:02:59.4]} 2. c4 {[%clk 0:03:01.4]}
2... Bg7 {[%clk 0:03:00.8]} 3. Nf3 {[%clk 0:03:01.6]} 3... d6 {[%clk 0:03:02.1]}
4. Nc3 {[%clk 0:03:01.9]} 4... e5 {[%clk 0:03:02.5]} 5. Bg5 {[%clk 0:02:44]}
5... f6 {[%clk 0:03:02.5]} 6. Bd2 {[%clk 0:02:42.8]} 6... Nc6 {[%clk 0:03:02.6]}
7. d5 {[%clk 0:02:43.2]} 7... Nce7 {[%clk 0:03:02.9]} 8. e4 {[%clk 0:02:44.1]}
8... f5 {[%clk 0:03:01]} 9. Bd3 {[%clk 0:02:44.9]} 9... Nf6 {[%clk 0:03:01]} 10.
Qc2 {[%clk 0:02:43.4]} 10... O-O {[%clk 0:03:01.3]} 11. O-O-O {[%clk 0:02:43.4]}
11... c6 {[%clk 0:03:02.2]} 12. h3 {[%clk 0:02:41.1]} 12... cxd5 {[%clk
0:03:03.1]} 13. cxd5 {[%clk 0:02:41.2]} 13... b5 {[%clk 0:03:00.2]} 14. Bg5
{[%clk 0:02:30]} 14... b4 {[%clk 0:02:59.7]} 15. Bxf6 {[%clk 0:02:30.6]} 15...
Bxf6 {[%clk 0:02:58.6]} 16. Ne2 {[%clk 0:02:25.1]} 16... fxe4 {[%clk 0:02:58.6]}
17. Bxe4 {[%clk 0:02:25.8]} 17... Qb6 {[%clk 0:03:00.1]} 18. Ng3 {[%clk
0:02:16.2]} 18... Bd7 {[%clk 0:02:58.3]} 19. Kb1 {[%clk 0:02:16.6]} 19... a5
{[%clk 0:02:57.4]} 20. Rc1 {[%clk 0:02:16]} 20... Rfc8 {[%clk 0:02:49.3]} 21.
Qd2 {[%clk 0:02:16.1]} 21... b3 {[%clk 0:02:48.6]} 22. a3 {[%clk 0:02:12.9]}
22... a4 {[%clk 0:02:46.1]} 23. Ng5 {[%clk 0:02:03.1]} 23... Kg7 {[%clk
0:02:39.6]} 24. h4 {[%clk 0:01:58.3]} 24... Rxc1+ {[%clk 0:02:32.3]} 25. Rxc1
{[%clk 0:01:57.5]} 25... Rc8 {[%clk 0:02:34.2]} 26. Rxc8 {[%clk 0:01:52.1]}
26... Bxc8 {[%clk 0:02:36.1]} 27. h5 {[%clk 0:01:28.5]} 27... h6 {[%clk
0:02:10.6]} 28. Ne6+ {[%clk 0:01:25.7]} 28... Bxe6 {[%clk 0:02:11.5]} 29. dxe6
{[%clk 0:01:26.8]} 29... d5 {[%clk 0:02:13.4]} 30. Bxd5 {[%clk 0:01:01.2]} 30...
Qd6 {[%clk 0:02:13.1]} 31. hxg6 {[%clk 0:01:02]} 31... Qxd5 {[%clk 0:02:12.4]}
32. Nf5+ {[%clk 0:01:02.6]} 32... Kf8 {[%clk 0:02:02.3]} 33. Qxh6+ {[%clk
0:00:32.5]} 33... Ke8 {[%clk 0:02:03]} 34. Ne3 {[%clk 0:00:33.1]} 34... Qd3+
{[%clk 0:02:01.3]} 35. Kc1 {[%clk 0:00:33.7]} 35... Nxg6 {[%clk 0:01:48.2]} 36.
Qh7 {[%clk 0:00:31.6]} 36... Bg5 {[%clk 0:01:33.1]} 37. Qg8+ {[%clk 0:00:16.4]}
37... Ke7 {[%clk 0:01:33.4]} 38. Qf7+ {[%clk 0:00:11.8]} 38... Kd8 {[%clk
0:01:34.5]} 39. Qg8+ {[%clk 0:00:07.4]} 39... Kc7 {[%clk 0:01:35.1]} 40. Qf7+
{[%clk 0:00:02]} 40... Kb6 {[%clk 0:01:36.3]} 0-1

[Event "*** Titled Tuesday Blitz"]
[Site "Chess.com"]
[Date "2018.04.03"]
[Round "10"]
[White "pultineviciuspaulius"]
[Black "dianosky"]
[Result "1-0"]
[WhiteElo "2592"]
[BlackElo "2301"]
[TimeControl "180+2"]
[EndTime "15:14:31 PDT"]
[Termination "pultineviciuspaulius won by resignation"]

1. d4 {[%clk 0:03:01.9]} 1... d5 {[%clk 0:03:00]} 2. c4 {[%clk 0:03:03.2]} 2...
dxc4 {[%clk 0:03:00.1]} 3. Nf3 {[%clk 0:03:03.3]} 3... a6 {[%clk 0:02:59.8]} 4.
e3 {[%clk 0:03:04.7]} 4... Nf6 {[%clk 0:02:57.3]} 5. Bxc4 {[%clk 0:03:04.6]}
5... b5 {[%clk 0:02:57.9]} 6. Bb3 {[%clk 0:03:05.7]} 6... Bb7 {[%clk 0:02:58.9]}
7. O-O {[%clk 0:03:06.9]} 7... e6 {[%clk 0:02:59]} 8. Nc3 {[%clk 0:03:07.9]}
8... c5 {[%clk 0:02:57.8]} 9. Qe2 {[%clk 0:03:07.3]} 9... Nbd7 {[%clk
0:02:57.7]} 10. a3 {[%clk 0:03:07.4]} 10... Qc7 {[%clk 0:02:52.9]} 11. Rd1
{[%clk 0:03:08]} 11... c4 {[%clk 0:02:50.6]} 12. Bc2 {[%clk 0:03:08.3]} 12... e5
{[%clk 0:02:51]} 13. e4 {[%clk 0:03:00.5]} 13... exd4 {[%clk 0:02:43]} 14. Nxd4
{[%clk 0:03:02.4]} 14... Bc5 {[%clk 0:02:43]} 15. Be3 {[%clk 0:02:35.4]} 15...
O-O {[%clk 0:02:41.9]} 16. f4 {[%clk 0:02:33.5]} 16... Nb6 {[%clk 0:02:20]} 17.
Nf5 {[%clk 0:02:17.5]} 17... Rfe8 {[%clk 0:02:08.8]} 18. e5 {[%clk 0:02:03.7]}
18... Nfd5 {[%clk 0:02:01.9]} 19. Nxd5 {[%clk 0:02:03.9]} 19... Nxd5 {[%clk
0:02:00.8]} 20. Bxc5 {[%clk 0:01:03.5]} 20... Qxc5+ {[%clk 0:01:59.6]} 21. Rd4
{[%clk 0:00:59.5]} 21... Nxf4 {[%clk 0:01:55.4]} 22. Qf2 {[%clk 0:00:59.3]}
22... Ng6 {[%clk 0:01:30.5]} 23. Nd6 {[%clk 0:00:53.1]} 23... Bd5 {[%clk
0:01:29.3]} 24. Rad1 {[%clk 0:00:48.2]} 24... Be6 {[%clk 0:01:20.6]} 25. Nxe8
{[%clk 0:00:38.5]} 25... Rxe8 {[%clk 0:01:17.6]} 26. Rd8 {[%clk 0:00:39.7]}
26... Qxf2+ {[%clk 0:01:17.2]} 27. Kxf2 {[%clk 0:00:41.6]} 27... Kf8 {[%clk
0:01:18.3]} 28. Rxe8+ {[%clk 0:00:42.6]} 28... Kxe8 {[%clk 0:01:18.6]} 29. Bxg6
{[%clk 0:00:44.5]} 29... hxg6 {[%clk 0:01:15.4]} 30. Rd6 {[%clk 0:00:46.4]}
30... a5 {[%clk 0:01:10.6]} 31. Rb6 {[%clk 0:00:46.1]} 31... Bd7 {[%clk
0:01:10.9]} 32. Ke3 {[%clk 0:00:45.9]} 32... Ke7 {[%clk 0:01:10.6]} 33. Kd4
{[%clk 0:00:46.7]} 33... a4 {[%clk 0:01:10.9]} 34. Kc5 {[%clk 0:00:47]} 34...
Be8 {[%clk 0:01:07.8]} 35. Rxb5 {[%clk 0:00:47.1]} 35... Bxb5 {[%clk 0:01:08.3]}
36. Kxb5 {[%clk 0:00:49]} 36... Ke6 {[%clk 0:01:10.2]} 37. Kxa4 {[%clk
0:00:50.2]} 37... Kxe5 {[%clk 0:01:10.9]} 38. Kb5 {[%clk 0:00:51.7]} 38... Kd5
{[%clk 0:01:04.1]} 39. a4 {[%clk 0:00:52.3]} 39... g5 {[%clk 0:01:02.7]} 40. a5
{[%clk 0:00:53.5]} 40... g4 {[%clk 0:01:03.3]} 41. a6 {[%clk 0:00:54.7]} 41...
f5 {[%clk 0:01:02.6]} 42. a7 {[%clk 0:00:55.3]} 1-0